fUST/lending_fUST_20251024
["ID","MTS","AMOUNT","RATE_DAILY","PERIOD"]
[392176727,1761237766902,-210.995933,0.00022926,7]
[392176728,1761237767343,7708.042536,0.000229,2]
[392176729,1761237767367,10000.01,0.000229,2]
[392176730,1761237767388,10000.01,0.000229,2]
[392176731,1761237767409,558.937464,0.000229,2]
[392176732,1761237767791,444.129177,0.000229,9]
[392176733,1761237768271,200.0,0.00022925,2]
[392176734,1761237774386,506.56,0.00022925,10]
[392176735,1761237775698,5000.0,0.00022926,2]
[392176736,1761237777689,932.78,0.00022899,2]
[392176737,1761237778330,932.78,0.00022899,2]
[392176738,1761237778567,932.78,0.00022922,2]
[392176739,1761237778815,492.043359,0.00022924,2]
[392176740,1761237778838,440.736641,0.00022924,2]
[392176741,1761237780823,150.0,0.00019482,2]
[392176742,1761237781260,150.0,0.0002041,2]
[392176743,1761237781720,150.0,0.00021337,2]
[392176744,1761237782132,150.0,0.00022265,2]
[392176745,1761237783470,2400.0,0.00022926,2]
[392176746,1761237784873,422.13,0.00022925,10]
[392176747,1761237785239,150.0,0.0001546,30]
[392176748,1761237785652,150.0,0.00016196,30]
[392176749,1761237786068,150.0,0.00016933,30]
[392176750,1761237786483,150.0,0.00017669,30]
[392176751,1761237791508,5000.0,0.00022926,2]
[392176752,1761237796859,351.78,0.00022925,10]
[392176753,1761237797019,-1200.0,0.00022931,2]
[392176754,1761237797054,-300.0,0.00022931,2]
[392176755,1761237799888,295.56531714,0.00022931,2]
[392176756,1761237800680,3872.9288006,0.00022836,2]
[392176757,1761237808574,293.15,0.00022925,10]
[392176758,1761237812101,-151.0,0.00022932,2]
[392176759,1761237812136,-506.0,0.00022932,2]
[392176760,1761237812164,-151.46458228,0.00022932,2]
[392176761,1761237812192,-151.0,0.00022932,2]
[392176762,1761237812224,-500.0,0.00022932,2]
[392176763,1761237812253,-278.07647929,0.00022932,2]
[392176764,1761237812281,-151.35141846,0.00022932,2]
[392176765,1761237812308,-154.72642015,0.00022932,2]
[392176766,1761237812336,-500.0,0.00022932,2]
[392176767,1761237812363,-500.0,0.00022932,2]
[392176768,1761237812505,-500.0,0.00022932,2]
[392176769,1761237812537,-151.0,0.00022933,2]
[392176770,1761237812566,-151.0,0.00022933,2]
[392176771,1761237812594,-279.23020803,0.00022933,2]
[392176772,1761237812621,-500.0,0.00022933,2]
[392176773,1761237812650,-151.0,0.00022933,2]
[392176774,1761237812678,-151.0,0.00022933,2]
[392176775,1761237812925,-151.0,0.00022933,2]
[392176776,1761237812955,-500.0,0.00022933,2]
[392176777,1761237812986,-207.60724146,0.00022933,2]
[392176778,1761237813016,-152.0600537,0.00022933,2]
[392176779,1761237813048,-500.0,0.00022933,2]
[392176780,1761237813077,-151.0,0.00022933,2]
[392176781,1761237813107,-285.13277577,0.00022933,2]
[392176782,1761237813136,-151.0,0.00022933,2]
[392176783,1761237813166,-151.0,0.00022933,2]
[392176784,1761237813195,-440.661864,0.00022933,7]
[392176785,1761237813225,-440.661864,0.00022933,7]
[392176786,1761237813255,-440.661864,0.00022933,7]
[392176787,1761237813285,-440.661864,0.00022933,7]
[392176788,1761237813314,-636.64,0.00022933,2]
[392176789,1761237813439,-932.78,0.00022933,2]
[392176790,1761237813468,-500.0,0.00022934,2]
[392176791,1761237813498,-500.0,0.00022934,2]
[392176792,1761237813531,-500.0,0.00022934,2]
[392176793,1761237813561,-500.0,0.00022934,2]
[392176794,1761237813591,-500.0,0.00022934,2]
[392176795,1761237813692,-500.0,0.00022934,2]
[392176796,1761237813727,-523.28,0.00022934,2]
[392176797,1761237813758,-523.28,0.00022934,2]
[392176798,1761237813850,-231.20234751,0.00022934,2]
[392176799,1761237813879,-184.49407255,0.00022934,2]
[392176800,1761237813909,-650.43,0.00022934,2]
[392176801,1761237813939,-650.43,0.00022934,2]
[392176802,1761237813967,-894.35,0.00022934,2]
[392176803,1761237814009,-894.35,0.00022934,2]
[392176804,1761237814042,-151.0,0.00022934,7]
[392176805,1761237814074,-151.0,0.00022934,7]
[392176806,1761237814105,-500.0,0.00022934,2]
[392176807,1761237814133,-368.65447566,0.00022934,2]
[392176808,1761237814164,-11.54820856,0.00022934,2]
[392176809,1761237814478,-625.09179144,0.00022934,2]
[392176810,1761237814508,-636.64,0.00022934,2]
[392176811,1761237814541,-636.64,0.00022934,2]
[392176812,1761237814571,-636.64,0.00022934,2]
[392176813,1761237814603,-636.64,0.00022934,2]
[392176814,1761237814635,-500.0,0.00022934,2]
[392176815,1761237814666,-500.0,0.00022934,2]
[392176816,1761237814698,-245.94438131,0.00022934,2]
[392176817,1761237814731,-500.0,0.00022934,2]
[392176818,1761237814776,-527.25847269,0.00022934,2]
[392176819,1761237814808,-500.0,0.00022934,2]
[392176820,1761237814838,-151.0,0.00022934,2]
[392176821,1761237814869,-151.0,0.00022934,2]
[392176822,1761237814898,-151.0,0.00022934,2]
[392176823,1761237814926,-153.03585551,0.00022934,2]
[392176824,1761237814955,-500.0,0.00022934,2]
[392176825,1761237814984,-500.0,0.00022934,2]
[392176826,1761237815012,-500.0,0.00022934,2]
[392176827,1761237815039,-596.02277331,0.00022934,2]
[392176828,1761237815067,-153.44704061,0.00022934,2]
[392176829,1761237815094,-500.0,0.00022934,2]
[392176830,1761237815124,-151.0,0.00022934,2]
[392176831,1761237815152,-151.0,0.00022934,2]
[392176832,1761237815289,-151.23942676,0.00022934,2]
[392176833,1761237815462,-932.78,0.00022934,2]
[392176834,1761237815493,-932.78,0.00022934,2]
[392176835,1761237815526,-932.78,0.00022934,2]
[392176836,1761237815558,-932.78,0.00022934,2]
[392176837,1761237815594,-932.78,0.00022934,2]
[392176838,1761237815622,-172.21,0.00022935,2]
[392176839,1761237815827,-327.79,0.00022935,2]
[392176840,1761237815856,-500.0,0.00022935,2]
[392176841,1761237815885,-500.0,0.00022935,2]
[392176842,1761237815915,-500.0,0.00022935,2]
[392176843,1761237815947,-500.0,0.00022935,2]
[392176844,1761237815977,-500.0,0.00022935,2]
[392176845,1761237816009,-500.0,0.00022935,2]
[392176846,1761237816038,-500.0,0.00022935,2]
[392176847,1761237816070,-500.0,0.00022935,2]
[392176848,1761237816099,-500.0,0.00022935,2]
[392176849,1761237816303,-500.0,0.00022935,2]
[392176850,1761237816332,-500.0,0.00022935,2]
[392176851,1761237816361,-500.0,0.00022935,2]
[392176852,1761237816389,-500.0,0.00022935,2]
[392176853,1761237816495,-214.55502943,0.00022935,2]
[392176854,1761237816530,-500.0,0.00022935,2]
[392176855,1761237816558,-500.0,0.00022935,2]
[392176856,1761237816582,-500.0,0.00022935,2]
[392176857,1761237816607,-500.0,0.00022935,2]
[392176858,1761237816630,-500.0,0.00022935,2]
[392176859,1761237816655,-70.89994114,0.00022935,2]
[392176860,1761237816754,-429.10005886,0.00022935,2]
[392176861,1761237816782,-500.0,0.00022935,2]
[392176862,1761237816810,-500.0,0.00022935,2]
[392176863,1761237816839,-500.0,0.00022935,2]
[392176864,1761237816867,-500.0,0.00022935,2]
[392176865,1761237816898,-500.0,0.00022935,2]
[392176866,1761237816927,-500.0,0.00022935,2]
[392176867,1761237816955,-500.0,0.00022935,2]
[392176868,1761237816983,-500.0,0.00022935,2]
[392176869,1761237817011,-500.0,0.00022935,2]
[392176870,1761237818619,-500.0,0.00022935,2]
[392176871,1761237818647,-500.0,0.00022935,2]
[392176872,1761237818676,-500.0,0.00022935,2]
[392176873,1761237818704,-500.0,0.00022935,2]
[392176874,1761237818732,-568.23641697,0.00022935,2]
[392176875,1761237818763,-523.28,0.00022935,2]
[392176876,1761237818794,-523.28,0.00022935,2]
[392176877,1761237818823,-523.28,0.00022935,2]
[392176878,1761237818852,-523.28,0.00022935,2]
[392176879,1761237818882,-154.01716606,0.00022935,2]
[392176880,1761237819161,-369.26283394,0.00022935,2]
[392176881,1761237819191,-523.28,0.00022935,2]
[392176882,1761237819222,-523.28,0.00022935,2]
[392176883,1761237819252,-523.28,0.00022935,2]
[392176884,1761237819282,-523.28,0.00022935,2]
[392176885,1761237819312,-523.28,0.00022935,2]
[392176886,1761237819342,-523.28,0.00022935,2]
[392176887,1761237819372,-523.28,0.00022935,2]
[392176888,1761237819402,-523.28,0.00022935,2]
[392176889,1761237819431,-365.72433212,0.00022935,2]
[392176890,1761237820929,-157.55566788,0.00022935,2]
[392176891,1761237820972,-523.28,0.00022935,2]
[392176892,1761237821019,-194.015522,0.00022935,7]
[392176893,1761237821065,-194.015522,0.00022935,7]
[392176894,1761237821104,-309.771441,0.00022935,2]
[392176895,1761237821136,-194.015522,0.00022935,7]
[392176896,1761237821177,-309.771441,0.00022935,2]
[392176897,1761237821210,-309.771441,0.00022935,2]
[392176898,1761237821250,-194.015522,0.00022935,7]
[392176899,1761237821283,-309.771441,0.00022935,2]
[392176900,1761237821322,-650.43,0.00022935,2]
[392176901,1761237821358,-650.43,0.00022935,2]
[392176902,1761237821392,-650.43,0.00022935,2]
[392176903,1761237821425,-55.03296024,0.00022935,2]
[392176904,1761237821466,-595.39703976,0.00022935,2]
[392176905,1761237821499,-650.43,0.00022935,2]
[392176906,1761237821535,-650.43,0.00022935,2]
[392176907,1761237821569,-650.43,0.00022935,2]
[392176908,1761237821601,-650.43,0.00022935,2]
[392176909,1761237821633,-151.0,0.00022935,7]
[392176910,1761237821665,-650.43,0.00022935,2]
[392176911,1761237821696,-650.43,0.00022935,2]
[392176912,1761237821854,-51.62592048,0.00022935,2]
[392176913,1761237821894,-598.80407952,0.00022935,2]
[392176914,1761237821926,-650.43,0.00022935,2]
[392176915,1761237821954,-650.43,0.00022935,2]
[392176916,1761237821982,-650.43,0.00022935,2]
[392176917,1761237822013,-650.43,0.00022935,2]
[392176918,1761237822045,-151.0,0.00022935,7]
[392176919,1761237822075,-151.0,0.00022935,7]
[392176920,1761237822103,-894.35,0.00022935,2]
[392176921,1761237822132,-311.91184096,0.00022935,2]
[392176922,1761237822168,-582.43815904,0.00022935,2]
[392176923,1761237822200,-894.35,0.00022935,2]
[392176924,1761237822232,-894.35,0.00022935,2]
[392176925,1761237822259,-894.35,0.00022935,2]
[392176926,1761237822286,-894.35,0.00022935,2]
[392176927,1761237822314,-785.98368192,0.00022935,2]
[392176928,1761237822454,-108.36631808,0.00022935,2]
[392176929,1761237822487,-894.35,0.00022935,2]
[392176930,1761237822519,-894.35,0.00022935,2]
[392176931,1761237822546,-894.35,0.00022935,2]
[392176932,1761237822575,-894.35,0.00022935,2]
[392176933,1761237822603,-894.35,0.00022935,2]
[392176934,1761237825664,-244.29,0.00022925,10]
[392176935,1761237825695,-894.35,0.00022935,2]
[392176936,1761237825723,-894.35,0.00022935,2]
[392176937,1761237825751,-894.35,0.00022935,2]
[392176938,1761237825779,-1566.91,0.00022935,2]
[392176939,1761237825827,-1566.91,0.00022935,2]
[392176940,1761237825856,-1566.91,0.00022935,2]
[392176941,1761237825885,-1566.91,0.00022935,2]
[392176942,1761237825929,-1566.91,0.00022935,2]
[392176943,1761237825958,-1566.91,0.00022935,2]
[392176944,1761237825987,-1566.91,0.00022935,2]
[392176945,1761237826033,-1566.91,0.00022935,2]
[392176946,1761237826062,-1566.91,0.00022935,2]
[392176947,1761237826092,-1566.91,0.00022935,2]
[392176948,1761237826140,-1566.91,0.00022935,2]
[392176949,1761237826169,-1566.91,0.00022935,2]
[392176950,1761237826199,-1566.91,0.00022935,2]
[392176951,1761237826243,-1566.91,0.00022935,2]
[392176952,1761237826273,-1566.91,0.00022935,2]
[392176953,1761237826302,-1566.91,0.00022935,2]
[392176954,1761237830199,-1566.91,0.00022935,2]
[392176955,1761237830228,-837.018508,0.00022935,7]
[392176956,1761237830256,-837.018508,0.00022935,7]
[392176957,1761237830283,-837.018508,0.00022935,7]
[392176958,1761237830311,-837.018508,0.00022935,7]
[392176959,1761237830499,-203.58,0.00022925,10]
[392176960,1761237830531,-837.018508,0.00022935,7]
[392176961,1761237830558,-837.018508,0.00022935,7]
[392176962,1761237830584,-837.018508,0.00022935,7]
[392176963,1761237830612,-837.018508,0.00022935,7]
[392176964,1761237830639,-837.018508,0.00022935,7]
[392176965,1761237830667,-385.646412,0.00022935,7]
[392176966,1761237831012,-451.372096,0.00022935,7]
[392176967,1761237831040,-837.018508,0.00022935,7]
[392176968,1761237831068,-837.018508,0.00022935,7]
[392176969,1761237831094,-153.144065,0.00022935,7]
[392176970,1761237831121,-151.0,0.00022935,7]
[392176971,1761237831150,-151.0,0.00022935,7]
[392176972,1761237831178,-151.0,0.00022935,7]
[392176973,1761237831299,-151.0,0.00022935,3]
[392176974,1761237831326,-151.0,0.00022935,3]
[392176975,1761237831354,-151.0,0.00022935,3]
[392176976,1761237831381,-151.0,0.00022935,3]
[392176977,1761237831407,-151.0,0.00022935,7]
[392176978,1761237831433,-151.0,0.00022935,3]
[392176979,1761237831460,-151.0,0.00022935,7]
[392176980,1761237831486,-151.0,0.00022935,7]
[392176981,1761237831516,-151.0,0.00022935,3]
[392176982,1761237831543,-151.0,0.00022935,3]
[392176983,1761237831572,-151.0,0.00022935,3]
[392176984,1761237831601,-151.0,0.00022935,3]
[392176985,1761237831628,-151.0,0.00022935,3]
[392176986,1761237831654,-151.0,0.00022935,3]
[392176987,1761237831682,-151.0,0.00022935,3]
[392176988,1761237831851,-151.0,0.00022935,3]
[392176989,1761237831880,-151.0,0.00022935,3]
[392176990,1761237831910,-151.0,0.00022935,3]
[392176991,1761237831938,-151.0,0.00022935,3]
[392176992,1761237831968,-232.510304,0.00022935,3]
[392176993,1761237831995,-440.661864,0.00022935,7]
[392176994,1761237832025,-440.661864,0.00022935,7]
[392176995,1761237832053,-440.661864,0.00022935,7]
[392176996,1761237832080,-440.661864,0.00022935,7]
[392176997,1761237832108,-440.661864,0.00022935,7]
[392176998,1761237832139,-440.661864,0.00022935,7]
[392176999,1761237832165,-440.661864,0.00022935,7]
[392177000,1761237832191,-440.661864,0.00022935,7]
[392177001,1761237832218,-440.661864,0.00022935,7]
[392177002,1761237832323,-440.661864,0.00022935,7]
[392177003,1761237832350,-440.661864,0.00022935,7]
[392177004,1761237832378,-440.661864,0.00022935,7]
[392177005,1761237832407,-440.661864,0.00022935,7]
[392177006,1761237832436,-440.661864,0.00022935,7]
[392177007,1761237832464,-440.661864,0.00022935,7]
[392177008,1761237832491,-440.661861,0.00022935,7]
[392177009,1761237832522,-151.0,0.00022935,7]
[392177010,1761237832550,-151.0,0.00022935,7]
[392177011,1761237832578,-151.0,0.00022935,7]
[392177012,1761237832606,-151.0,0.00022935,7]
[392177013,1761237832634,-151.0,0.00022935,7]
[392177014,1761237832661,-151.0,0.00022935,7]
[392177015,1761237832689,-151.0,0.00022935,7]
[392177016,1761237832716,-224.446364,0.00022935,7]
[392177017,1761237832742,-210.995933,0.00022935,7]
[392177018,1761237832768,-210.995933,0.00022935,7]
[392177019,1761237832881,-210.995933,0.00022935,7]
[392177020,1761237833079,-210.995933,0.00022935,7]
[392177021,1761237833108,-210.995933,0.00022935,7]
[392177022,1761237833137,-210.995933,0.00022935,7]
[392177023,1761237833164,-210.995933,0.00022935,7]
[392177024,1761237833193,-210.995933,0.00022935,7]
[392177025,1761237833221,-210.995933,0.00022935,7]
[392177026,1761237833252,-210.995933,0.00022935,7]
[392177027,1761237833281,-210.995933,0.00022935,7]
[392177028,1761237833308,-210.995933,0.00022935,7]
[392177029,1761237833335,-210.995933,0.00022935,7]
[392177030,1761237833364,-210.995933,0.00022935,7]
[392177031,1761237833392,-210.995933,0.00022935,7]
[392177032,1761237833420,-210.995941,0.00022935,7]
[392177033,1761237833450,-1000.0,0.00022935,2]
[392177034,1761237833477,-1000.0,0.00022935,2]
[392177035,1761237833858,-1000.0,0.00022935,2]
[392177036,1761237833887,-1000.0,0.00022935,2]
[392177037,1761237833917,-1000.0,0.00022935,2]
[392177038,1761237833947,-1000.0,0.00022935,2]
[392177039,1761237833976,-1000.0,0.00022935,2]
[392177040,1761237836412,-1000.0,0.00022935,2]
[392177041,1761237836439,-1000.0,0.00022935,2]
[392177042,1761237836467,-1000.0,0.00022935,2]
[392177043,1761237836495,-1000.0,0.00022935,2]
[392177044,1761237836524,-1000.0,0.00022935,2]
[392177045,1761237836572,-1000.0,0.00022935,2]
[392177046,1761237836599,-1000.0,0.00022935,2]
[392177047,1761237836628,-1000.0,0.00022935,2]
[392177048,1761237836653,-1000.0,0.00022935,2]
[392177049,1761237836681,-1000.0,0.00022935,2]
[392177050,1761237836829,-1000.0,0.00022935,2]
[392177051,1761237836857,-1000.0,0.00022935,2]
[392177052,1761237836884,-1000.0,0.00022935,2]
[392177053,1761237836916,-1000.0,0.00022935,2]
[392177054,1761237836944,-1000.0,0.00022935,2]
[392177055,1761237837190,-1000.0,0.00022935,2]
[392177056,1761237837216,-1000.0,0.00022935,2]
[392177057,1761237837243,-1000.0,0.00022935,2]
[392177058,1761237837272,-1000.0,0.00022935,2]
[392177059,1761237837299,-1000.0,0.00022935,2]
[392177060,1761237837501,-1000.0,0.00022935,2]
[392177061,1761237837532,-1000.0,0.00022935,2]
[392177062,1761237837562,-1000.0,0.00022935,2]
[392177063,1761237837591,-1000.0,0.00022935,2]
[392177064,1761237837620,-1000.0,0.00022935,2]
[392177065,1761237837691,-1000.0,0.00022935,2]
[392177066,1761237837814,-1000.0,0.00022935,2]
[392177067,1761237837842,-1000.0,0.00022935,2]
[392177068,1761237837869,-1000.0,0.00022935,2]
[392177069,1761237837896,-1000.0,0.00022935,2]
[392177070,1761237848188,-5000.0,0.0002267,7]
[392177071,1761237848311,-500.0,0.00022899,2]
[392177072,1761237848341,-500.0,0.00022899,2]
[392177073,1761237848370,-500.0,0.00022921,2]
[392177074,1761237848400,-1066.74,0.00022925,10]
[392177075,1761237848428,-712.31,0.00022926,3]
[392177076,1761237848458,-300.0,0.00022934,2]
[392177077,1761237848492,-1000.0,0.00022935,2]
[392177078,1761237848852,-1000.0,0.00022935,2]
[392177079,1761237848882,-1000.0,0.00022935,2]
[392177080,1761237848912,-1000.0,0.00022935,2]
[392177081,1761237848940,-1000.0,0.00022935,2]
[392177082,1761237848970,-1000.0,0.00022935,2]
[392177083,1761237849046,-636.64,0.00022935,2]
[392177084,1761237849076,-636.64,0.00022935,2]
[392177085,1761237849105,-1000.0,0.00022935,2]
[392177086,1761237849134,-636.64,0.00022935,2]
[392177087,1761237849162,-1000.0,0.00022935,2]
[392177088,1761237849192,-636.64,0.00022935,2]
[392177089,1761237849222,-270.25,0.00022935,2]
[392177090,1761237849272,-366.39,0.00022935,2]
[392177091,1761237849306,-636.64,0.00022935,2]
[392177092,1761237849336,-636.64,0.00022935,2]
[392177093,1761237849367,-1000.0,0.00022935,2]
[392177094,1761237849397,-636.64,0.00022935,2]
[392177095,1761237849428,-636.64,0.00022935,2]
[392177096,1761237849458,-1000.0,0.00022935,2]
[392177097,1761237849673,-636.64,0.00022935,2]
[392177098,1761237849703,-636.64,0.00022935,2]
[392177099,1761237849733,-1000.0,0.00022935,2]
[392177100,1761237849763,-636.64,0.00022935,2]
[392177101,1761237849793,-636.64,0.00022935,2]
[392177102,1761237849824,-636.698407,0.00022935,2]
[392177103,1761237849854,-633.493186,0.00022935,2]
[392177104,1761237857231,-150.0,0.00019243,2]
[392177105,1761237857262,-150.0,0.00020159,2]
[392177106,1761237857293,-150.0,0.00021075,2]
[392177107,1761237857325,-196.63,0.00021992,2]
[392177108,1761237857356,-2056.6257733,0.00022706,7]
[392177109,1761237857386,-800.0,0.00022792,2]
[392177110,1761237857415,-800.0,0.00022827,2]
[392177111,1761237857443,-593.4984534,0.00022837,2]
[392177112,1761237857677,-206.5015466,0.00022837,2]
[392177113,1761237857711,-245.79,0.00022908,2]
[392177114,1761237857744,-950.65,0.00022925,10]
[392177115,1761237857773,-356.15,0.00022926,3]
[392177116,1761237857805,-366.506814,0.00022935,2]
[392177117,1761237857834,-1000.0,0.00022935,2]
[392177118,1761237857865,-1000.0,0.00022935,2]
[392177119,1761237857895,-748.8132788,0.00022935,2]
[392177120,1761237858048,-251.1867212,0.00022935,2]
[392177121,1761237858078,-1000.0,0.00022935,2]
[392177122,1761237858109,-1000.0,0.00022935,2]
[392177123,1761237858139,-1000.0,0.00022935,2]
[392177124,1761237858168,-1000.0,0.00022935,2]
[392177125,1761237858198,-151.0,0.00022935,7]
[392177126,1761237858225,-151.0,0.00022935,7]
[392177127,1761237858295,-1000.0,0.00022935,2]
[392177128,1761237858322,-151.0,0.00022935,7]
[392177129,1761237858354,-1000.0,0.00022935,2]
[392177130,1761237858383,-1000.0,0.00022935,2]
[392177131,1761237858411,-1000.0,0.00022935,2]
[392177132,1761237858439,-151.0,0.00022935,7]
[392177133,1761237858467,-151.0,0.00022935,7]
[392177134,1761237858495,-94.01,0.00022935,2]
[392177135,1761237858595,-905.99,0.00022935,2]
[392177136,1761237858624,-151.0,0.00022935,7]
[392177137,1761237858653,-1000.0,0.00022935,2]
[392177138,1761237858682,-151.0,0.00022935,7]
[392177139,1761237858710,-151.0,0.00022935,7]
[392177140,1761237858738,-1000.0,0.00022935,2]
[392177141,1761237858765,-185.857397,0.00022935,7]
[392177142,1761237858793,-1000.0,0.00022935,2]
[392177143,1761237858939,150.0,0.00015267,30]
[392177144,1761237859044,-1000.0,0.00022935,2]
[392177145,1761237859074,-151.0,0.00022935,7]
[392177146,1761237859105,-1000.0,0.00022935,2]
[392177147,1761237859133,-151.0,0.00022935,7]
[392177148,1761237859162,-151.0,0.00022935,7]
[392177149,1761237859288,-1000.0,0.00022935,2]
[392177150,1761237859318,-151.0,0.00022935,7]
[392177151,1761237859349,-1000.0,0.00022935,2]
[392177152,1761237859377,-151.0,0.00022935,7]
[392177153,1761237859570,-1000.0,0.00022935,2]
[392177154,1761237859600,-1000.0,0.00022935,2]
[392177155,1761237859629,-151.0,0.00022935,7]
[392177156,1761237859659,-1000.0,0.00022935,2]
[392177157,1761237859688,-1000.0,0.00022935,2]
[392177158,1761237859718,-698.01,0.00022935,2]
[392177159,1761237859894,150.0,0.00015994,30]
[392177160,1761237860243,150.0,0.00016721,30]
[392177161,1761237860676,150.0,0.00017448,30]
[392177162,1761237861036,150.0,0.00018175,30]
[392177163,1761237861331,150.0,0.00018902,30]
[392177164,1761237866402,-445.86641694,0.00022835,2]
[392177165,1761237870969,5000.0,0.00022923,2]
[392177166,1761237873321,276.199566,0.000229,9]
[392177167,1761237881479,-242.96,0.00022926,3]
[392177168,1761237881509,-893.83,0.00022926,10]
[392177169,1761237881541,-728.89,0.00022926,3]
[392177170,1761237881570,-744.86,0.00022926,10]
[392177171,1761237888270,766.37,0.00022925,10]
[392177172,1761237893646,4012.56,0.00022926,2]
[392177173,1761237893674,987.44,0.00022926,2]
[392177174,1761237896367,-500.0,0.00022934,2]
[392177175,1761237896395,-202.21779665,0.00022934,2]
[392177176,1761237896516,-500.0,0.00022934,2]
[392177177,1761237896548,-500.0,0.00022934,2]
[392177178,1761237896580,-500.0,0.00022934,2]
[392177179,1761237896609,-500.0,0.00022934,2]
[392177180,1761237896639,-500.0,0.00022934,2]
[392177181,1761237896667,-500.0,0.00022934,2]
[392177182,1761237896694,-500.0,0.00022934,2]
[392177183,1761237896720,-500.0,0.00022934,2]
[392177184,1761237896748,-95.5744067,0.00022934,2]
[392177185,1761237896855,-404.4255933,0.00022934,2]
[392177186,1761237896883,-500.0,0.00022934,2]
[392177187,1761237896911,-500.0,0.00022934,2]
[392177188,1761237896939,-500.0,0.00022934,2]
[392177189,1761237896967,-500.0,0.00022934,2]
[392177190,1761237896996,-500.0,0.00022934,2]
[392177191,1761237897025,-500.0,0.00022934,2]
[392177192,1761237897051,-500.0,0.00022934,2]
[392177193,1761237897080,-500.0,0.00022934,2]
[392177194,1761237897107,-500.0,0.00022934,2]
[392177195,1761237897207,-551.01916713,0.00022934,2]
[392177196,1761237897235,-500.0,0.00022934,2]
[392177197,1761237897263,-500.0,0.00022934,2]
[392177198,1761237897291,-500.0,0.00022934,2]
[392177199,1761237897318,-500.0,0.00022934,2]
[392177200,1761237897347,-500.0,0.00022934,2]
[392177201,1761237897376,-500.0,0.00022934,2]
[392177202,1761237897405,-500.0,0.00022934,2]
[392177203,1761237897434,-500.0,0.00022934,2]
[392177204,1761237897463,-397.97166574,0.00022934,2]
[392177205,1761237897656,-102.02833426,0.00022934,2]
[392177206,1761237897684,-500.0,0.00022934,2]
[392177207,1761237897713,-500.0,0.00022934,2]
[392177208,1761237897740,-500.0,0.00022934,2]
[392177209,1761237897769,-500.0,0.00022934,2]
[392177210,1761237897797,-500.0,0.00022934,2]
[392177211,1761237897827,-177.11332843,0.00022934,2]
[392177212,1761237897855,-500.0,0.00022934,2]
[392177213,1761237897978,-500.0,0.00022934,2]
[392177214,1761237898006,-550.0,0.00022934,2]
[392177215,1761237898035,-550.0,0.00022934,2]
[392177216,1761237898168,-500.0,0.00022934,2]
[392177217,1761237898197,-500.0,0.00022934,2]
[392177218,1761237898224,-159.38059305,0.00022934,2]
[392177219,1761237898251,-550.0,0.00022934,2]
[392177220,1761237898279,-500.0,0.00022934,2]
[392177221,1761237898305,-500.0,0.00022934,2]
[392177222,1761237898334,-500.0,0.00022934,2]
[392177223,1761237898363,-500.0,0.00022934,2]
[392177224,1761237898391,-500.0,0.00022934,2]
[392177225,1761237898418,-404.72155775,0.00022934,2]
[392177226,1761237898445,-271.8056984,0.00022934,2]